bitfinex-derivatives/quotes_ETHF0:USTF0_20250327
["timestamp","ask_amount","ask_price","bid_price","bid_amount"]
[1743060205309,8.69762,2024.2,2024.1,1.4306]
[1743060206111,14.52762,2024.2,2024.1,1.4306]
[1743060207313,0.98797,2024.1,2024.0,0.98802]
[1743060207514,2.29257,2024.1,2024.0,1.66222]
[1743060207806,1.3046,2024.1,2024.0,1.66222]
[1743060208613,1.3046,2024.1,2024.0,3.04032]
[1743060209714,9.0378,2024.2,2024.1,0.98797]
[1743060209915,9.0378,2024.2,2024.1,2.36537]
[1743060210212,9.0378,2024.2,2024.1,3.03227]
[1743060212219,3.2078,2024.2,2024.1,3.03227]
[1743060214713,4.19572,2024.2,2024.1,2.0443]
[1743060214919,4.5069,2024.2,2024.1,3.03227]
[1743060215111,5.49482,2024.2,2024.1,3.03227]
[1743060215314,4.5069,2024.2,2024.1,3.03227]
[1743060215623,4.5069,2024.2,2024.1,2.36537]
[1743060217120,5.49482,2024.2,2024.1,1.3774]
[1743060217422,5.49482,2024.2,2024.1,2.36537]
[1743060217715,4.5069,2024.2,2024.1,2.36537]
[1743060218121,5.49482,2024.2,2024.1,2.36537]
[1743060219118,4.5069,2024.2,2024.1,2.36537]
[1743060219318,5.49482,2024.2,2024.1,2.36537]
[1743060220020,5.49482,2024.2,2024.1,1.3774]
[1743060223517,2.28702,2024.2,2024.1,1.3774]
[1743060223722,5.49482,2024.2,2024.1,1.3774]
[1743060224919,4.5069,2024.2,2024.1,2.36537]
[1743060225220,4.5069,2024.2,2024.1,3.04437]
[1743060226336,5.49482,2024.2,2024.1,2.0564]
[1743060226827,4.5069,2024.2,2024.1,2.0564]
[1743060227033,4.5069,2024.2,2024.1,3.04437]
[1743060227637,5.49482,2024.2,2024.1,2.0564]
[1743060227830,4.5069,2024.2,2024.1,3.04437]
[1743060228428,5.49482,2024.2,2024.1,3.04437]
[1743060229035,5.49482,2024.2,2024.1,2.0564]
[1743060231433,4.5069,2024.2,2024.1,3.04437]
[1743060232140,5.49482,2024.2,2024.1,2.36537]
[1743060232735,4.5069,2024.2,2024.1,2.36537]
[1743060233744,5.49482,2024.2,2024.1,2.36537]
[1743060234238,2.28702,2024.2,2024.1,2.36537]
[1743060234443,5.49482,2024.2,2024.1,2.36537]
[1743060234642,5.49482,2024.2,2024.1,0.98797]
[1743060235542,4.5069,2024.2,2024.1,0.98797]
[1743060236632,5.49482,2024.2,2024.1,0.98797]
[1743060237643,4.5069,2024.2,2024.1,0.98797]
[1743060239346,1.2991,2024.2,2024.1,0.98797]
[1743060239535,4.5069,2024.2,2024.1,0.98797]
[1743060240343,4.5069,2024.2,2024.1,1.65177]
[1743060241244,4.5069,2024.2,2024.0,2.31029]
[1743060241445,2.7508,2024.1,2024.0,2.31029]
[1743060243745,5.9586,2024.1,2024.0,2.31029]
[1743060246440,2.7508,2024.1,2024.0,2.31029]
[1743060246648,5.9586,2024.1,2024.0,2.31029]
[1743060251549,2.7508,2024.1,2024.0,2.31029]
[1743060251751,5.9586,2024.1,2024.0,2.31029]
[1743060255360,3.2078,2024.1,2024.0,2.31029]
[1743060255747,1.37330631,2024.3,2024.2,0.98792]
[1743060256148,1.37330631,2024.3,2024.2,41.78792]
[1743060256352,1.37330631,2024.3,2024.2,43.89752]
[1743060256649,0.00740631,2024.3,2024.2,43.89752]
[1743060259451,0.00740631,2024.3,2024.2,46.39752]
[1743060259957,0.00740631,2024.3,2024.2,43.89752]
[1743060270459,0.00740631,2024.3,2024.2,47.01152]
[1743060271356,0.00740631,2024.3,2024.2,43.89752]
[1743060274063,1.4043,2024.5,2024.4,0.98782]
[1743060274560,1.4043,2024.5,2024.4,1.66972]
[1743060274761,1.4043,2024.5,2024.4,42.46972]
[1743060275363,0.00740631,2024.7,2024.6,0.98773]
[1743060275960,0.00740631,2024.7,2024.6,41.78773]
[1743060279567,1.36480631,2024.7,2024.6,41.78773]
[1743060280371,0.6941,2024.9,2024.8,0.98763]
[1743060280869,2.0378,2025.0,2024.9,0.98758]
[1743060309884,2.0378,2025.0,2024.9,2.31598]
[1743060333017,3.8615,2025.1,2025.0,0.98753]
[1743060333208,5.2829,2025.1,2025.0,2.36743]
[1743060334216,4.6292,2025.1,2025.0,2.36743]
[1743060334425,0.00740631,2025.2,2025.1,0.98748]
[1743060334718,0.00740631,2025.2,2025.1,1.63778]
[1743060335125,0.00740631,2025.2,2025.1,3.03218]
[1743060341023,6.31e-06,2025.2,2025.1,3.03218]
[1743060346332,6.31e-06,2025.2,2025.1,6.23998]
[1743060348124,6.31e-06,2025.2,2024.8,4.93812]
[1743060348125,6.31e-06,2025.2,2024.8,3.2078]
[1743060348327,0.70900631,2025.2,2025.0,0.98751]
[1743060348531,3.00616631,2025.2,2024.9,1.3007]
[1743060348828,0.6567,2025.1,2025.0,0.98753]
[1743060349032,1.9664,2025.1,2025.0,0.98753]
[1743060349232,1.9664,2025.1,2024.9,1.3007]
[1743060349423,1.3121,2025.0,2024.9,2.28828]
[1743060352728,1.3121,2025.0,2024.9,3.66128]
[1743060353235,0.6567,2025.1,2025.0,0.98753]
[1743060353428,2.0612,2025.1,2025.0,2.40633]
[1743060368238,6.31e-06,2025.2,2025.1,0.98748]
[1743060368539,6.31e-06,2025.2,2025.1,2.30708]
[1743060368741,1.39990631,2025.2,2025.1,2.30708]
[1743060386759,6.31e-06,2025.2,2025.1,2.30708]
[1743060387656,6.31e-06,2025.2,2025.1,4.66708]
[1743060387859,6.31e-06,2025.2,2025.1,4.24708]
[1743060388156,6.31e-06,2025.2,2025.1,2.30708]
[1743060389749,6.31e-06,2025.2,2025.1,5.51488]
[1743060392262,1.36570631,2025.2,2025.1,5.51488]
[1743060395567,2.06660631,2025.2,2025.1,5.51488]
[1743060398259,2.06660631,2025.2,2025.1,2.30708]
[1743060398456,2.06660631,2025.2,2025.1,5.51488]
[1743060398657,1.36570631,2025.2,2025.1,5.51488]
[1743060402163,2.08120631,2025.2,2025.1,5.51488]
[1743060402357,2.08120631,2025.2,2025.1,2.30708]
[1743060410060,2.08120631,2025.2,2025.1,41.78748]
[1743060413578,7.91120631,2025.2,2024.9,0.98756]
[1743060413876,1.309,2025.1,2024.9,0.98756]
[1743060414173,0.7068,2025.0,2024.9,0.98756]
[1743060415077,2.0158,2025.0,2024.9,0.98756]
[1743060417267,3.00333,2025.0,2024.8,46.38229]
[1743060417465,2.1236,2024.9,2024.8,46.38233]
[1743060417662,2.1236,2024.9,2024.8,44.99543]
[1743060419675,2.1236,2024.9,2024.8,41.78763]
[1743060420280,3.11118,2024.9,2024.8,43.16283]
[1743060420881,3.11118,2024.9,2024.8,42.1752]
[1743060421881,3.11118,2024.9,2024.8,43.16283]
[1743060422482,2.1236,2024.9,2024.8,43.16283]
[1743060423375,7.9536,2024.9,2024.8,43.16283]
[1743060425088,7.9536,2024.9,2024.8,2.36283]
[1743060425585,7.9536,2024.9,2024.8,43.16283]
[1743060426085,7.9536,2024.9,2024.8,2.36283]
[1743060438485,8.94118,2024.9,2024.8,1.3752]
[1743060438682,7.9536,2024.9,2024.8,2.36283]
[1743060439691,7.9536,2024.9,2024.5,1.344]
[1743060439692,0.98768,2024.7,2024.5,2.33175]
[1743060439991,6.8177,2024.7,2024.5,1.68096]
[1743060440184,0.6955,2024.6,2024.5,1.68096]
[1743060440993,2.113,2024.6,2024.5,3.00006]
[1743060441793,3.10073,2024.6,2024.5,3.00006]
[1743060442185,8.93073,2024.6,2024.5,1.3191]
[1743060442386,0.98781,2024.5,2024.3,0.98784]
[1743060442591,1.65822,2024.4,2024.3,0.98784]
[1743060442792,0.6704,2024.4,2024.3,0.98784]
[1743060442993,2.0879,2024.4,2024.3,0.98784]
[1743060443191,3.07572,2024.4,2024.3,0.98784]
[1743060443385,2.0879,2024.4,2024.3,0.98784]
[1743060444892,2.0879,2024.4,2024.2,41.79530631]
[1743060445095,1.9845,2024.3,2024.2,41.79530631]
[1743060450696,1.9845,2024.3,2024.2,41.79532631]
[1743060453802,1.2932,2024.3,2024.2,41.79532631]
[1743060454792,1.70051,2024.5,2024.4,0.98782]
[1743060454793,0.7127,2024.5,2024.4,0.98782]
[1743060454997,10.73505,2024.6,2024.5,0.98777]
[1743060454998,9.0378,2024.6,2024.5,0.98777]
[1743060456197,10.3368,2024.6,2024.5,0.98777]
[1743060457107,7.129,2024.6,2024.5,0.98777]
[1743060461702,7.8459,2024.6,2024.5,0.98777]
[1743060466401,7.129,2024.6,2024.5,0.98777]
[1743060473303,7.7916,2024.6,2024.5,0.98777]
[1743060476511,8.77935,2024.6,2024.4,2.33771]
[1743060476706,1.9803,2024.5,2024.4,2.33771]
[1743060477007,0.98787,2024.3,2024.2,0.00740631]
[1743060477816,1.69327,2024.3,2024.2,0.00740631]
[1743060478409,1.69327,2024.3,2024.2,0.99532631]
[1743060480208,0.7054,2024.3,2024.2,0.99532631]
[1743060480602,2.0431,2024.3,2024.2,0.99532631]
[1743060480816,1.3377,2024.3,2024.2,0.99532631]
[1743060481812,1.3169,2024.5,2024.4,0.98782]
[1743060482018,2.6546,2024.5,2024.4,0.98782]
[1743060482206,1.3377,2024.5,2024.4,0.98782]
[1743060487216,2.32547,2024.5,2024.4,0.98782]
[1743060487416,2.32547,2024.5,2024.2,3.21520631]
[1743060487609,2.0731,2024.4,2024.3,0.98787]
[1743060490017,3.06092,2024.4,2024.2,0.00740631]
[1743060490221,2.0683,2024.3,2024.2,0.99530631]
[1743060493219,1.4121,2024.3,2024.2,0.99530631]
[1743060493422,1.4121,2024.3,2024.2,2.38810631]
[1743060494124,5.83,2024.6,2024.2,1.40020631]
[1743060494318,1.3993,2024.5,2024.4,0.98782]
[1743060494511,5.83,2024.6,2024.5,0.98777]
[1743060494710,5.83,2024.6,2024.5,2.38057]
[1743060495016,5.83,2024.6,2024.5,43.18057]
[1743060496020,1.3993,2024.7,2024.5,43.18057]
[1743060496021,7.1974,2025.0,2024.5,42.1928]
[1743060496226,1.3642,2024.9,2024.6,1.3455]
[1743060496419,1.3642,2024.9,2024.8,0.98761]
[1743060496925,1.3642,2024.9,2024.8,2.33311]
[1743060504727,3.20780631,2025.2,2025.1,0.98748]
[1743060505234,6.31e-06,2025.2,2025.1,0.98748]
[1743060505421,6.31e-06,2025.2,2025.1,2.33428]
[1743060505729,6.31e-06,2025.2,2025.1,2.72107429]
[1743060505929,6.31e-06,2025.2,2025.1,43.13428]
[1743060506129,6.31e-06,2025.2,2025.1,44.50738]
[1743060506931,6.31e-06,2025.2,2025.1,47.00738]
[1743060509835,6.31e-06,2025.2,2025.1,44.50738]
[1743060516441,6.31e-06,2025.2,2025.1,47.00738]
[1743060516745,6.31e-06,2025.2,2025.1,49.25738]
[1743060517046,6.31e-06,2025.2,2025.1,47.00738]
[1743060517244,6.31e-06,2025.2,2025.1,49.06738]
[1743060517448,6.31e-06,2025.2,2025.1,47.00738]
[1743060517744,6.31e-06,2025.2,2025.1,49.25738]
[1743060518244,6.31e-06,2025.2,2025.1,47.00738]
[1743060518449,6.31e-06,2025.2,2025.1,50.21518]
[1743060518750,6.31e-06,2025.2,2025.1,52.20518]
[1743060519551,6.31e-06,2025.2,2025.1,50.21518]
[1743060519951,6.31e-06,2025.2,2025.1,52.24518]
[1743060520453,6.31e-06,2025.2,2025.1,50.21518]
[1743060520643,6.31e-06,2025.2,2025.1,52.48518]
[1743060521150,6.31e-06,2025.2,2025.1,52.55518]
[1743060521345,6.31e-06,2025.2,2025.1,50.21518]
[1743060521850,6.31e-06,2025.2,2025.1,47.71518]
[1743060522252,6.31e-06,2025.2,2025.1,49.86518]
[1743060522444,6.31e-06,2025.2,2025.1,47.71518]
[1743060527060,6.31e-06,2025.2,2025.1,44.50738]
[1743060527356,6.31e-06,2025.2,2025.1,47.71518]
[1743060528357,6.31e-06,2025.2,2025.1,44.50738]
[1743060528661,6.31e-06,2025.2,2025.1,47.71518]
[1743060529756,6.31e-06,2025.2,2025.1,47.05408]
[1743060529953,0.68010631,2025.2,2025.1,47.05408]
[1743060530151,0.68010631,2025.2,2025.1,46.36838]
[1743060530354,0.68010631,2025.2,2025.1,44.99528]
[1743060531755,0.68010631,2025.2,2025.1,41.78748]
[1743060543071,2.02710631,2025.2,2025.1,41.78748]
[1743060544968,2.02710631,2025.2,2025.1,44.89848]
[1743060544969,1.34700631,2025.2,2025.1,44.89848]
[1743060545672,1.34700631,2025.2,2025.1,46.21928]
[1743060545871,6.31e-06,2025.2,2025.1,46.21928]
[1743060548572,6.31e-06,2025.2,2025.1,49.42708]
[1743060552174,6.31e-06,2025.2,2025.1,46.21928]
[1743060552377,6.31e-06,2025.2,2025.1,49.42708]
[1743060555277,6.31e-06,2025.2,2025.1,46.31608]
[1743060555575,6.31e-06,2025.2,2025.1,0.98748]
[1743060555576,0.65180631,2025.2,2025.1,0.98748]
[1743060555779,0.65180631,2025.2,2024.9,3.111]
[1743060555977,1.2987,2025.1,2025.0,41.78752]
[1743060556276,2.0081,2025.1,2025.0,41.78752]
[1743060563073,2.0081,2025.1,2025.0,43.21742]
[1743060564181,1.2987,2025.1,2025.0,43.21742]
[1743060564385,1.2987,2025.1,2025.0,43.91452]
[1743060566973,6.31e-06,2025.2,2025.1,0.98748]
[1743060567168,6.31e-06,2025.2,2025.1,3.01488]
[1743060567583,1.30070631,2025.2,2025.1,3.01488]
[1743060568782,6.31e-06,2025.2,2025.1,6.13488]
[1743060572685,6.31e-06,2025.2,2025.1,9.34268]
[1743060573089,6.31e-06,2025.2,2025.1,11.69268]
[1743060575485,6.31e-06,2025.2,2025.1,9.34268]
[1743060575981,6.31e-06,2025.2,2025.1,11.53268]
[1743060576179,6.31e-06,2025.2,2025.1,9.34268]
[1743060576374,6.31e-06,2025.2,2025.1,11.66268]
[1743060576780,6.31e-06,2025.2,2025.1,9.34268]
[1743060577082,6.31e-06,2025.2,2025.1,11.47268]
[1743060577281,6.31e-06,2025.2,2025.1,9.34268]
[1743060577779,6.31e-06,2025.2,2025.1,11.26268]
[1743060578278,6.31e-06,2025.2,2025.1,9.34268]
[1743060578477,6.31e-06,2025.2,2025.1,11.48268]
[1743060580191,6.31e-06,2025.2,2025.1,11.36268]
[1743060581295,6.31e-06,2025.2,2025.1,11.60268]
[1743060586096,6.31e-06,2025.2,2025.1,8.39488]
[1743060586291,6.31e-06,2025.2,2025.1,11.60268]
[1743060587690,6.31e-06,2025.2,2025.1,14.10268]
[1743060588894,6.31e-06,2025.2,2025.1,11.60268]
[1743060589794,5.83,2025.9,2025.8,0.98714]
[1743060590096,0.6895,2026.1,2026.0,0.98704]
[1743060590496,0.6895,2026.1,2026.0,41.78704]
[1743060595496,0.6895,2026.1,2026.0,45.46324]
[1743060595804,0.6895,2026.1,2026.0,43.13324]
[1743060596306,0.6895,2026.1,2026.0,41.78704]
[1743060600604,0.6895,2026.1,2026.0,0.98704]
[1743060607808,0.6895,2026.1,2026.0,4.19484]
[1743060612602,0.6895,2026.1,2026.0,5.50784]
[1743060613410,0.6895,2026.1,2026.0,4.19484]
[1743060614105,0.6895,2026.1,2026.0,0.98704]
[1743060614810,0.6895,2026.1,2026.0,2.29194]
[1743060616606,0.6895,2026.1,2026.0,43.09194]
[1743060620714,1.32870631,2026.3,2026.2,0.98695]
[1743060621014,1.32870631,2026.3,2026.2,4.19475]
[1743060621509,1.32870631,2026.3,2026.2,5.49315]
[1743060621715,1.32870631,2026.3,2026.2,46.29315]
[1743060625114,1.32870631,2026.3,2026.2,49.40815]
[1743060625315,1.32870631,2026.3,2026.2,50.10645]
[1743060628317,0.00740631,2026.3,2026.2,50.10645]
[1743060636610,0.00740631,2026.3,2026.2,49.40815]
[1743060637914,0.00740631,2026.3,2026.2,4.19475]
[1743060638115,0.00740631,2026.3,2026.2,0.98695]
[1743060639014,0.68090631,2026.3,2026.2,0.98695]
[1743060639210,1.37940631,2026.3,2026.2,0.98695]
[1743060646621,2.74710631,2026.3,2026.2,0.98695]
[1743060648830,2.74710631,2026.3,2026.2,2.38945]
[1743060651426,2.74710631,2026.3,2026.2,0.98695]
[1743060652023,3.73400631,2026.3,2026.2,0.98695]
[1743060652224,2.74710631,2026.3,2026.2,0.98695]
[1743060653627,3.73400631,2026.3,2026.2,0.98695]
[1743060653938,3.73400631,2026.3,2026.2,41.78695]
[1743060654141,2.74710631,2026.3,2026.2,41.78695]
[1743060657337,3.73400631,2026.3,2026.2,41.78695]
[1743060657538,2.74710631,2026.3,2026.2,41.78695]
[1743060657939,3.73400631,2026.3,2026.2,41.78695]
[1743060658139,2.74710631,2026.3,2026.2,41.78695]
[1743060659432,3.73400631,2026.3,2026.2,40.8]
[1743060659836,2.74710631,2026.3,2026.2,42.1184]
[1743060660342,3.73400631,2026.3,2026.2,42.1184]
[1743060660641,3.73400631,2026.3,2026.2,43.10535]
[1743060660836,0.98709,2025.9,2025.8,0.00740631]
[1743060661537,3.68499,2025.9,2025.8,0.00740631]
[1743060662533,8.19589001,2025.9,2025.8,0.00740631]
[1743060662738,0.98714,2025.8,2025.7,40.8]
[1743060662947,2.29374,2025.8,2025.7,40.8]
[1743060663136,0.98719,2025.7,2025.6,2.41353]
[1743060663445,2.30139,2025.7,2025.6,2.41353]
[1743060663640,2.30139,2025.7,2025.6,43.21353]
[1743060664744,1.3142,2025.7,2025.6,43.21353]
[1743060666348,4.522,2025.7,2025.4,0.00740631]
[1743060666650,0.98729,2025.5,2025.4,0.00740631]
[1743060667238,2.30019,2025.5,2025.4,1.35920631]
[1743060669042,2.30019,2025.5,2025.4,0.00740631]
[1743060669751,6.81109001,2025.5,2025.4,0.00740631]
[1743060675538,9.31109001,2025.5,2025.4,0.00740631]
[1743060678943,6.81109001,2025.5,2025.4,0.00740631]
[1743060680239,10.01889001,2025.5,2025.4,0.00740631]
[1743060681348,13.13589001,2025.5,2025.4,0.00740631]
[1743060681747,10.01889001,2025.5,2025.4,0.00740631]
[1743060682052,13.13789001,2025.5,2025.4,1.31000631]
[1743060683252,13.13789001,2025.5,2025.4,2.29734631]
[1743060683648,13.13789001,2025.5,2025.4,1.31000631]
[1743060687749,13.13789001,2025.5,2025.4,2.29734631]
[1743060687953,9.03160001,2025.5,2025.4,2.29734631]
[1743060688148,7.71870001,2025.5,2025.4,2.29734631]
[1743060690156,3.2078,2025.5,2025.4,2.29734631]
[1743060692555,4.5532,2025.5,2025.4,2.29734631]
[1743060693052,3.2078,2025.5,2025.4,2.29734631]
[1743060696457,1.3492,2025.7,2025.6,0.98724]
[1743060696860,4.557,2025.7,2025.6,2.28524]
[1743060699462,5.54419,2025.7,2025.6,2.28524]
[1743060699653,4.557,2025.7,2025.6,2.28524]
[1743060700050,5.2214,2025.7,2025.6,2.28524]
[1743060706359,0.6734,2025.9,2025.8,0.98714]
[1743060706566,4.51090001,2026.0,2025.9,0.98709]
[1743060706767,4.51090001,2026.0,2025.9,1.65009]
[1743060706961,4.51090001,2026.0,2025.9,2.30589]
[1743060707570,5.92870001,2026.0,2025.9,3.67939]
[1743060708867,1.4178,2026.0,2025.9,3.67939]
[1743060709062,0.688,2026.2,2026.1,0.98699]
[1743060709266,1.9846,2026.2,2026.1,0.98699]
[1743060721895,0.00740631,2026.3,2026.2,0.98695]
[1743060722196,4.51090001,2026.5,2026.2,0.98695]
[1743060722197,4.51090001,2026.5,2026.4,0.98685]
[1743060722395,2.0286,2026.7,2026.6,0.98675]
[1743060723286,2.0286,2026.7,2026.6,1.4322]
[1743060723489,2.0286,2026.7,2026.6,2.41895]
[1743060732511,2.0286,2026.7,2026.5,0.98677]
[1743060732807,1.312,2026.6,2026.5,0.9868]
[1743060733517,1.312,2026.6,2026.5,2.3756]
[1743060734899,1.312,2026.6,2026.5,3.731]
[1743060741109,1.312,2026.6,2026.4,0.00740631]
[1743060741311,5.5229,2026.5,2026.4,0.00740631]
[1743060741614,10.03380001,2026.5,2026.4,0.00740631]
[1743060742111,0.9869,2026.3,2026.1,0.98696]
[1743060742514,1.4218,2026.2,2026.1,0.98696]
[1743060743109,1.4218,2026.2,2026.1,2.28006]
[1743060751613,1.4218,2026.2,2026.1,0.98696]
[1743060752023,2.1217,2026.2,2026.1,0.98696]
[1743060752222,2.1217,2026.2,2026.1,2.40016]
[1743060755419,7.71870001,2026.5,2026.4,0.98685]
[1743060755619,4.51090001,2026.5,2026.4,0.98685]
[1743060756727,4.51090001,2026.5,2026.4,2.34715]
[1743060757423,1.4202,2026.6,2026.5,0.9868]
[1743060757624,1.4202,2026.6,2026.5,1.3818]
[1743060757625,2.40695,2026.6,2026.5,1.3818]
[1743060758019,2.40695,2026.6,2026.5,2.3686]
[1743060758227,1.4202,2026.6,2026.5,2.3686]
[1743060761030,2.40695,2026.6,2026.5,2.3686]
[1743060761329,3.9202,2026.6,2026.2,0.98691]
[1743060761526,3.9202,2026.6,2026.1,3.2078]
[1743060761527,0.9869,2026.3,2026.1,4.19477]
[1743060761729,1.331,2026.2,2026.1,5.49407]
[1743060761928,3.71915,2026.2,2026.1,5.49407]
[1743060762525,2.7322,2026.2,2026.1,5.49407]
[1743060762726,3.71915,2026.2,2026.1,1.2993]
[1743060762921,3.71915,2026.2,2026.1,2.28629]
[1743060763124,0.98699,2026.1,2026.0,40.8]
[1743060763323,2.38819,2026.1,2026.0,43.08634]
[1743060763525,2.38819,2026.1,2026.0,42.0993]
[1743060764325,2.38819,2026.1,2026.0,40.8]
[1743060764532,0.98704,2026.0,2025.9,0.00740631]
[1743060764720,6.92694001,2026.0,2025.9,0.00740631]
[1743060769929,10.04994001,2026.0,2025.9,0.00740631]
[1743060770135,10.04994001,2026.0,2025.9,2.28869631]
[1743060770327,9.06290001,2026.0,2025.9,2.28869631]
[1743060770532,4.51090001,2026.0,2025.9,2.28869631]
[1743060775141,1.3959,2026.1,2026.0,0.98704]
[1743060775439,5.49774001,2026.5,2026.0,4.5786]
[1743060775647,4.51090001,2026.5,2026.4,0.98685]
[1743060775938,1.3111,2026.6,2026.5,0.9868]
[1743060776342,2.6684,2026.6,2026.5,0.9868]
[1743060778442,2.6684,2026.6,2026.4,2.31842]
[1743060778645,1.3111,2026.6,2026.5,0.9868]
[1743060778946,1.3111,2026.6,2026.2,3.8066]
[1743060779241,0.98686,2026.4,2026.1,0.98696]
[1743060779445,0.98688,2026.4,2026.1,2.37906]
[1743060779648,0.6544,2026.3,2026.1,2.37906]
[1743060780241,1.6413,2026.3,2026.1,2.37906]
[1743060780441,0.7178,2026.2,2025.9,4.45450631]
[1743060780649,1.70475,2026.2,2026.0,5.58693]
[1743060781253,0.7178,2026.2,2025.9,1.66497631]
[1743060781443,0.987,2026.1,2025.9,1.66497631]
[1743060781648,0.987,2026.1,2025.9,0.99447631]
[1743060782553,3.9256,2026.2,2026.1,0.98699]
[1743060782870,3.2078,2026.2,2026.1,0.98699]
[1743060783048,4.51090001,2026.4,2026.3,0.9869]
[1743060786763,3.2078,2026.5,2026.4,0.98685]
[1743060787158,6.18645001,2026.6,2026.4,0.98685]
[1743060788268,6.18645001,2026.6,2026.5,1.3783]
[1743060789267,5.19970001,2026.6,2026.5,2.3651]
[1743060789768,4.51090001,2026.6,2026.5,2.3651]
[1743060790661,7.71870001,2026.8,2026.7,0.9867]
[1743060791268,8.70535001,2026.8,2026.7,1.4109]
[1743060791955,7.71870001,2026.8,2026.7,2.3976]
[1743060792173,8.70535001,2026.8,2026.7,2.3976]
[1743060792472,7.71870001,2026.8,2026.7,2.3976]
[1743060792771,4.51090001,2026.8,2026.7,2.3976]
[1743060793565,5.85290001,2026.8,2026.7,2.3976]
[1743060794670,6.83955001,2026.8,2026.7,1.4109]
[1743060794869,6.83955001,2026.8,2026.7,2.3976]
[1743060795070,6.83955001,2026.8,2026.7,1.4109]
[1743060795264,5.85290001,2026.8,2026.7,2.3976]
[1743060795464,6.83955001,2026.8,2026.7,1.4109]
[1743060795967,5.85290001,2026.8,2026.7,2.3976]
[1743060801276,6.83955001,2026.8,2026.7,2.3976]
[1743060801482,6.83955001,2026.8,2026.7,0.9867]
[1743060801685,5.85290001,2026.8,2026.7,0.9867]
[1743060801975,6.83955001,2026.8,2026.7,0.9867]
[1743060802168,5.85290001,2026.8,2026.7,0.9867]
[1743060802585,5.85290001,2026.8,2026.7,2.3843]
[1743060809977,6.83955001,2026.8,2026.7,2.3843]
[1743060810179,5.85290001,2026.8,2026.7,2.3843]
[1743060810576,6.83955001,2026.8,2026.7,1.3976]
[1743060811383,6.83955001,2026.8,2026.6,41.4863]
[1743060811580,2.6462,2026.7,2026.6,43.88635]
[1743060812975,1.2962,2026.7,2026.6,43.88635]
[1743060816779,4.51090001,2026.8,2026.6,43.88635]
[1743060816987,4.51090001,2026.8,2026.7,5.6243]
[1743060817173,4.51090001,2026.8,2026.7,6.3016]
[1743060822188,1.39150631,2026.9,2026.8,0.98665]
[1743060822386,1.39150631,2026.9,2026.8,2.32375]
[1743060822688,1.39150631,2026.9,2026.8,5.44075]
[1743060823388,0.00740631,2026.9,2026.8,5.44075]
[1743060826688,7.71870001,2027.3,2027.2,0.98646]
[1743060826991,5.16250001,2027.3,2027.2,0.98646]
[1743060828087,6.59310001,2027.3,2027.2,0.98646]
[1743060830102,6.59310001,2027.3,2027.2,3.04596]
[1743060830580,6.59310001,2027.3,2027.2,2.38916]
[1743060830787,2.0822,2027.3,2027.2,2.38916]
[1743060831992,2.0822,2027.3,2027.2,0.98646]
[1743060832796,2.0822,2027.3,2027.2,2.36496]
[1743060833401,1.4306,2027.3,2027.2,2.36496]
[1743060835089,0.00740631,2027.5,2027.4,0.98636]
[1743060835497,0.00740631,2027.5,2027.4,3.05256]
[1743060835897,0.00740631,2027.5,2027.4,6.17556]
[1743060838004,3.2078,2028.0,2027.7,0.98622]
[1743060838205,1.3363,2027.9,2027.8,0.98617]
[1743060839395,2.6982,2027.9,2027.8,0.98617]
[1743060846599,2.6982,2027.9,2027.8,42.44767]
[1743060846799,2.6982,2027.9,2027.8,43.85597]
[1743060848502,4.51830632,2028.1,2028.0,0.98607]
[1743060849101,4.51830632,2028.1,2028.0,2.39437]
[1743060849703,4.51830632,2028.1,2028.0,5.51437]
[1743060850610,0.00740631,2028.1,2028.0,5.51437]
[1743060850808,0.7135,2028.5,2028.1,0.98602]
[1743060851008,0.7135,2028.5,2028.4,4.19368]
[1743060851709,0.7135,2028.5,2028.4,5.53248]
[1743060853899,2.1022,2028.5,2028.4,5.53248]
[1743060854810,2.1022,2028.5,2028.4,3.2078]
[1743060854811,3.08803,2028.5,2028.4,3.2078]
[1743060856212,3.08803,2028.5,2028.4,4.19368]
[1743060856505,3.08803,2028.5,2028.4,3.2078]
[1743060860317,0.98591,2028.4,2028.3,3.2078]
[1743060860507,2.29661,2028.4,2028.3,3.2078]
[1743060861218,1.3107,2028.4,2028.3,4.19372]
[1743060861513,1.3107,2028.4,2028.3,5.54482]
[1743060862414,2.29658,2028.4,2028.3,4.5589]
[1743060862915,2.29658,2028.4,2028.3,5.54482]
[1743060863307,1.3107,2028.4,2028.3,5.54482]
[1743060863712,2.29658,2028.4,2028.3,5.54482]
[1743060863917,1.3107,2028.4,2028.3,5.54482]
[1743060864809,2.29658,2028.4,2028.3,5.54482]
[1743060865318,2.29658,2028.4,2028.3,4.5589]
[1743060865511,1.3107,2028.4,2028.3,5.54482]
[1743060867516,2.29658,2028.4,2028.3,4.5589]
[1743060869514,1.3107,2028.4,2028.3,4.5589]
[1743060869817,2.29658,2028.4,2028.3,4.5589]
[1743060870117,1.3107,2028.4,2028.3,5.54482]
[1743060872320,2.29658,2028.4,2028.3,5.54482]
[1743060872620,1.3107,2028.4,2028.3,5.54482]
[1743060874319,0.7135,2028.5,2028.4,0.98588]
[1743060874529,0.7135,2028.5,2028.4,3.08738]
[1743060874721,2.1027,2028.5,2028.4,3.08738]
[1743060875014,5.49671001,2028.6,2028.5,0.98583]
[1743060875221,5.90010001,2028.6,2028.5,2.41113]
[1743060875420,6.88588001,2028.6,2028.5,2.41113]
[1743060875922,5.90010001,2028.6,2028.5,2.41113]
[1743060876219,6.88588001,2028.6,2028.5,2.41113]
[1743060876515,4.51090001,2028.6,2028.5,2.41113]
[1743060877714,1.409,2028.6,2028.5,2.41113]
[1743060878017,2.39478,2028.6,2028.5,1.4253]
[1743060878321,1.409,2028.6,2028.5,2.41113]
[1743060879720,2.39478,2028.6,2028.5,2.41113]
[1743060880322,1.36540631,2028.7,2028.6,0.98578]
[1743060880514,2.71770631,2028.7,2028.6,1.3819]
[1743060880914,3.70343631,2028.7,2028.6,1.3819]